Cogmind - Beta 16.1 @@@ ROGUE MODE // 2026.03.04 @ 19:08:32 Player: Endlessblaze Result: Destroyed by G-47 Trooper with Particle Gun Performance ------------- Evolutions (0) 0 Regions Visited (2) 400 Robots Destroyed (14) 70 Value Destroyed (382) 382 Prototype IDs (0) 0 Alien Tech Used (0) 0 Bonus (0) 0 TOTAL SCORE: 852 Bonus ------- None Cogmind --------- Core Integrity 0/250 Matter 183/300 Energy 100/100 System Corruption 0% Temperature Cool (15) Movement Core (3350) Ox66 Location -10/Subcaves Parts ------- > --- POWER (1) -------- (None) > --- PROPULSION (2) --- (None) > --- UTILITY (2) ------ Humpback > --- WEAPON (2) ------- (None) > --- INVENTORY (35) --- Subdweller Power Source Subdweller Monowheel Small Storage Unit Subdweller Optics Subdweller Optics Improved Terrain Scanner Targeting Computer Scrap Shield Hacking Suite Scrap Shield Fragment (48) Peak State ------------ > --- POWER ------------ Light Nuclear Core > --- PROPULSION ------- Aluminum Leg Aluminum Leg > --- UTILITY ---------- Small Storage Unit Improved Terrain Scanner > --- WEAPON ----------- Assault Rifle Assault Rifle > --- INVENTORY -------- (None) [Rating: 11] Favorites ----------- Power Light Nuclear Core Engine Ion Engine Power Core Light Nuclear Core Propulsion Aluminum Leg Leg Aluminum Leg Wheel Subdweller Monowheel Hover Unit Hover Unit Utility Humpback Device Improved Terrain Scanner Storage Humpback Weapon Assault Rifle Ballistic Gun Assault Rifle Launcher Grenade Launcher Build | -11 -10 -10 ------- Run | Yrd Mat Sub Slots Evolved . | . . . Power . | . . . Propulsion . | . . . Utility . | . . . Weapon . | . . . Parts Attached 12 | 7 2 3 Power 2 | 1 1 . Engine 1 | 1 . . Core 1 | . 1 . Reactor . | . . . Propulsion 4 | 2 . 2 Treads . | . . . Leg 2 | 2 . . Wheel 1 | . . 1 Hover 1 | . . 1 Flight . | . . . Utility 3 | 2 . 1 Device 1 | 1 . . Storage 2 | 1 . 1 Processor . | . . . Hackware . | . . . Protection . | . . . Artifact . | . . . Weapon 3 | 2 1 . Energy Gun . | . . . Energy Cannon . | . . . Ballistic Gun 2 | 2 . . Ballistic Cannon . | . . . Launcher 1 | . 1 . Special Weapon . | . . . Impact Weapon . | . . . Slashing Weapon . | . . . Piercing Weapon . | . . . Special Melee Weapon . | . . . Unidentified Prototypes . | . . . Parts Lost 6 | . 1 5 Power 1 | . . 1 Propulsion 2 | . . 2 Utility . | . . . Weapon 3 | . 1 2 Highest Loss Streak 2 | . 1 2 To Critical Strikes . | . . . Average Backups 4 | . 1 6 Power . | . . . Propulsion . | . . . Utility 3 | . . 4 Weapon . | . . . Tool/Special . | . . . Unused Backups 7 | . . 7 Power 2 | . . 2 Propulsion . | . . . Utility 5 | . . 5 Weapon . | . . . Tool/Special . | . . . Average Slot Usage (%) 78 | . 91 72 Engine 1 | . 4 . Core 12 | . 9 13 Leg 27 | . 28 26 Device 6 | . 14 2 Storage 14 | . 14 14 Ballistic Gun 10 | . 11 10 Launcher 4 | . 8 2 Peak Build Rating 11 | 9 11 11 Average Rating 9 | 4 9 9 On Entrance 6 | . 9 10 Avg Prop Armor Cover (%) 19 | 29 . 10 Naked Turns . | . . . Heaviest Build 207 | 15 16 207 Greatest Support 20 | 20 20 20 Greatest Overweight (x) 33 | 2 . 33 Average Overweight (x) 2 | . . 3 Largest Inventory Capacity 35 | 8 8 35 Average Capacity 22 | 6 8 29 Most Carried 12 | . 2 12 Average Carried 5 | . 1 8 Final Capacity 35 | 8 8 35 Final Carried 11 | . 2 11 Class Distribution -------------------- 54% | Hauler-Mutant 45% | Mutant Dominant Class ---------------- Mutant | -10/Materials Hauler-Mutant | -10/Subcaves Resources | -11 -10 -10 ----------- Run | Yrd Mat Sub Matter Collected 443 | 195 202 46 Remotely . | . . . Salvage Created 382 | 24 312 46 Parts 23 | 1 16 6 Haulers Intercepted 1 | . 1 . Recyclers Shooed . | . . . Parts Field Recycled . | . . . Retrieved Matter . | . . . Parts Self-Destructed 10 | . . 10 Prevented . | . . . Parts Restored . | . . . Kills | -11 -10 -10 ------- Run | Yrd Mat Sub Combat Hostiles Destroyed 11 | . 9 2 Guns 7 | . 6 1 AOE 4 | . 3 1 Classes Destroyed 6 | 1 4 1 Tunneler 1 | 1 . . Hauler 1 | . 1 . Watcher 1 | . 1 . Swarmer 3 | . 3 . Grunt 6 | . 6 . Subdweller 2 | . . 2 Best Kill Streak 3 | 1 3 2 Combat Bots Only 3 | . 3 2 Max Kills in Single Turn 2 | 1 2 1 Gunslinging . | . . . Exploded 2 | . 2 1 Melee . | . . . Uniques/NPCs Destroyed . | . . . Combat | -11 -10 -10 -------- Run | Yrd Mat Sub Hostile Shots Fired 123 | . 45 78 Missed 36 | . 16 20 Hits 87 | . 29 58 Projectile 87 | . 29 58 Critical Strikes 1 | . 1 . Damage Taken 1166 | . 382 784 Core 256 | . 50 206 Absorbed by Shields . | . . . Core Remaining (%) 100 | 100 . . Volleys Fired 34 | 1 29 4 Largest 2 | 2 2 1 Hottest 50 | 40 50 30 Shots Fired 57 | 2 51 4 Gun 44 | 2 40 2 Cannon . | . . . Launcher 13 | . 11 2 Special . | . . . Kinetic 44 | 2 40 2 Thermal . | . . . Explosive 13 | . 11 2 Electromagnetic . | . . . Robot Hit Streak 11 | 1 11 3 Robot Miss Streak 2 | . 2 . Penetration Max . | . . . Secondary Targets 2 | . 2 . Max Gunslinging Chain 1 | . 1 . Shots Hit Robots 31 | 1 27 3 Core Hits 26 | 1 22 3 Critical Kills . | . . . Critical Parts Destroyed . | . . . Critical Strikes . | . . . Melee Attacks . | . . . Impact . | . . . Slashing . | . . . Piercing . | . . . Sneak Attacks . | . . . Combat Hostiles . | . . . Follow-up Attacks . | . . . Damage Inflicted 913 | 12 782 119 Guns 397 | 12 356 29 Cannons . | . . . Explosions 516 | . 426 90 Melee . | . . . Ramming . | . . . Kinetic 397 | 12 356 29 Thermal . | . . . Explosive 516 | . 426 90 Electromagnetic . | . . . Impact . | . . . Slashing . | . . . Piercing . | . . . Highest Corruption . | . . . Average Corruption . | . . . Corruption Purged . | . . . Corruption Blocked . | . . . Overload Shots . | . . . Overflow Damage . | . . . Projectiles . | . . . Explosions . | . . . Melee . | . . . Knockbacks . | . . . Impact . | . . . Kinetic . | . . . Secondary . | . . . Self-Inflicted Damage 71 | . 71 . Shots 3 | . 3 . Rammed 1 | . . 1 Targets Rammed 1 | . . 1 Kicked . | . . . Crushed . | . . . Highest Temperature 20 | . 20 . Average Temperature 5 | . 5 . Received Heat Transfer 600 | . 156 444 Siege Activations . | . . . Martial Activations . | . . . Shielding Activations . | . . . Robots Disrupted . | . . . Combat Hostiles . | . . . Robots Corrupted . | . . . Combat Hostiles . | . . . Parts Fried . | . . . Impact Corruptions . | . . . Robots Melted . | . . . Combat Hostiles . | . . . Parts Melted . | . . . Heat Transferred . | . . . Parts Sabotaged . | . . . Parts Stolen . | . . . Parts Stripped . | . . . Power Chain Reactions . | . . . Alert | -11 -10 -10 ------- Run | Yrd Mat Sub Maximum Alert Level . | . . . Low Security (%) 100 | 100 100 . Level 1 . | . . . Level 2 . | . . . Level 3 . | . . . Level 4 . | . . . Level 5 . | . . . High Security . | . . . Max Security . | . . . Peak Influence 156 | 5 156 . Initial . | . . . Average 68 | . 76 . Influence Increases 358 | 5 353 . Destroy 0b10 Robot/C 180 | . 180 . Destroy 0b10 Robot/NC 15 | 5 10 . Destroy Leader 34 | . 34 . Successful Hack 24 | . 24 . Disable Machine 45 | . 45 . Destroy Structure 60 | . 60 . Influence Decreases 358 | 5 316 37 Entered New Map 18 | . . 18 Time Decay 330 | 5 306 19 Lost Part 10 | . 10 . Squads Dispatched 1 | . 1 . Investigation . | . . . Extermination . | . . . Reinforcement 1 | . 1 . Assault . | . . . Garrison . | . . . Intercept . | . . . Searches Triggered . | . . . Construction Impeded . | . . . Haulers Reinforced . | . . . Active Scanning Responses . | . . . Cargo Convoy Interrupts . | . . . Stealth | -11 -10 -10 --------- Run | Yrd Mat Sub Distress Signals 1 | . 1 . Communications Jammed . | . . . Distress Signals . | . . . Times Spotted 20 | . 16 4 Peak Tracking Total 3 | . 3 2 Tactical Retreats . | . . . Traps | -11 -10 -10 ------- Run | Yrd Mat Sub Traps Triggered . | . . . Indirectly . | . . . Trap Hack Attempts . | . . . Triggered . | . . . Disarmed . | . . . Reprogrammed 4 | . 4 . Reused . | . . . Traps Extracted . | . . . Installed . | . . . Triggered . | . . . Machines | -11 -10 -10 ---------- Run | Yrd Mat Sub Machines Disabled 3 | . 3 . Max in Single Turn 1 | . 1 . Machines Repaired . | . . . Machines Dismantled . | . . . Machines Sabotaged . | . . . Overloaded Fab Kills . | . . . Hacking | -11 -10 -10 --------- Run | Yrd Mat Sub Machines Accessed 5 | . 5 . Terminals 4 | . 4 . Fabricators . | . . . Repair Stations . | . . . Recycling Units 1 | . 1 . Scanalyzers . | . . . Garrison Access . | . . . Total Hacks 20 | . 20 . Successful 14 | . 14 . Failed 6 | . 6 . Catastrophic . | . . . Database Lockouts . | . . . Manual 18 | . 18 . Terminals 19 | . 19 . Fabricators . | . . . Repair Stations . | . . . Recycling Units 1 | . 1 . Scanalyzers . | . . . Garrison Access . | . . . Terminal Hacks 4 | . 4 . Branch Access Points 1 | . 1 . Locate Traps 1 | . 1 . Reprogram Traps 2 | . 2 . Fabricator Hacks . | . . . Repair Station Hacks . | . . . Recycling Unit Hacks . | . . . Scanalyzer . | . . . Garrison Access Hacks . | . . . Unauthorized Hacks 9 | . 9 . Terminals 8 | . 8 . Track 3 | . 3 . Assimilate 1 | . 1 . Botnet 4 | . 4 . Fabricators . | . . . Repair Stations . | . . . Recycling Units 1 | . 1 . Monitor 1 | . 1 . Scanalyzers . | . . . Garrison Access . | . . . Data Cores Recovered . | . . . Used . | . . . Hacking Detections 3 | . 3 . Full Trace Events . | . . . Feedback Events . | . . . Feedback Blocked . | . . . Robot Schematics Acquired . | . . . Robots Built . | . . . Authchips . | . . . Time . | . . . Total Robot Build Rating . | . . . Part Schematics Acquired . | . . . Parts Built . | . . . Authchips . | . . . Time . | . . . Total Part Build Rating . | . . . Part Studies Acquired . | . . . Parts Repaired . | . . . Time . | . . . Parts Recycled . | . . . Recycled Matter . | . . . Retrieved Matter . | . . . Retrieved Components . | . . . Parts Scanalyzed . | . . . Part Schematics Acquired . | . . . Parts Damaged . | . . . Bothacking | -11 -10 -10 ------------ Run | Yrd Mat Sub Used RIF Installer . | . . . Robots Hacked . | . . . Non-combat . | . . . Combat . | . . . Robot Hacks Applied . | . . . Relay Couplers Released . | . . . Fabnet Peak Effective % . | . . . Robots Rewired . | . . . Allies Hacked . | . . . Hacks Repelled . | . . . Allies | -11 -10 -10 -------- Run | Yrd Mat Sub Total Allies 1 | . 1 . Largest Group 1 | . 1 1 Highest-Rated Group 10 | . 10 10 Highest-Rated Ally 10 | . 10 10 Total Orders 4 | . 4 . STAY 1 | . 1 . ROAM 1 | . 1 . FOLLOW 2 | . 2 . Ally Attacks . | . . . Total Damage . | . . . Kills . | . . . Allies Corrupted . | . . . Allies Melted . | . . . Intel | -11 -10 -10 ------- Run | Yrd Mat Sub Active Infowar (turns) 1087 | . 733 354 Terrain 1087 | . 733 354 Robot Analysis Total . | . . . Derelict Logs Recovered . | . . . Drone Launches . | . . . Drone Recoveries . | . . . Exploration | -11 -10 -10 ------------- Run | Yrd Mat Sub Turns Passed 2536 | 84 733 1719 Spaces Moved 844 | 65 327 452 Core 31 | 31 . . Treads . | . . . Legs 792 | 34 327 431 Wheels 20 | . . 20 Hover 1 | . . 1 Flight . | . . . Fastest Speed 50 | 50 120 120 Average Speed 252 | 109 120 368 Slowest Speed 2040 | 150 120 2040 Overloaded Moves . | . . . Propulsion Burnouts . | . . . Robots Hopped . | . . . Potential Cave-ins . | . . . Cave-ins Triggered . | . . . Exploration Rate (%) 23 | 3 49 17 Regions Visited 2 Branch Regions 1 Pre-discovered Areas . | . . . Known Exits Taken . | . . . Unknown Exits Taken 2 | 1 1 . Scrap Searched . | . . . Spaces Dug 12 | . 6 6 Terrain Destroyed 70 | . 57 13 Melee . | . . . Projectile . | . . . AOE 70 | . 57 13 Terrain Rammed . | . . . Walls Destroyed . | . . . Machines Disabled . | . . . Actions | -11 -10 -10 --------- Run | Yrd Mat Sub Total 1173 | 72 615 486 Wait 263 | . 256 7 Move 842 | 64 326 452 Hop . | . . . Pick Up 16 | . 2 14 Fast Attach 7 | 7 . . Attach 4 | . . 4 Detach 1 | . . 1 Swap 2 | . 2 . Drop 3 | . . 3 Fire 34 | 1 29 4 Melee . | . . . Ram 1 | . . 1 Kick . | . . . Crush . | . . . Escape Stasis . | . . . Rewire . | . . . Trap . | . . . Miscellaneous . | . . . Route ------- -11/Scrapyard -10/Materials (discovered 4 exits: [*Mat] / *Min x2 / [*Sub]) -10/Subcaves History --------- Turn | Location | Event 9 | -11/Scrapyard | Discovered new exit (range 16) 85 | -11/Scrapyard | Entered Materials 334 | -10/Materials | Build established: Mutant 490 | -10/Materials | Identified exit to Mines 502 | -10/Materials | Discovered new exit (range 16) 727 | -10/Materials | Discovered new exit (range 9) 818 | -10/Materials | Entered Subcaves 818 | -10/Subcaves | Accompanied by 1 ally 819 | -10/Subcaves | Approached by a straggling Scientist 1328 | -10/Subcaves | A swath of the cavern ceiling suddenly collapsed 1479 | -10/Subcaves | Build established: Hauler-Mutant 2482 | -10/Subcaves | Core integrity fell below 50% 2520 | -10/Subcaves | Core integrity fell below 20% 2537 | -10/Subcaves | Destroyed by G-47 Trooper with Particle Gun Last Messages --------------- OH-43E(c): "We're getting close, I can feel it." 01228_ Acquired Sml. Storage Unit. 01237_ Acquired 22 matter. 01245_ Acquired 24 matter. OH-43E(c): "We're getting close, I can feel it." A swath of the cavern ceiling suddenly collapses. 01361_ The unstable cave ceiling collapses. OH-43E(c): "We're getting close, I can feel it." OH-43E(c): "I think it's somewhere east of here" 02437_ Assault Rifle destroyed. 02447_ Technician 1a destroyed. 02451_ Aluminum Leg destroyed. 02456_ Subatomizers dissect the Hover Unit. 02475_ Dropped Aluminum Leg. 02489_ Lgt. Nuclear Core destroyed. 02492_ Acquired Hacking Suite. 02495_ Acquired Hover Unit. 02509_ G-34 Mercenary suffers critical hit (Burn). 02518_ Slammed into G-34 Mercenary. 02527_ Hover Unit destroyed. Map ----- +----------------------------------------------------+ | ?"??????????????## ##?????????????????????????? | | ????????????????# #?????????????????????????? | | ?? ???????????#?# ##????????????????????????? | | ??????#?????????# #????????????????????????? | | ???"????????????# ####??????????#?????????????? | | ??????????????#?# ###?#???????????????????????? | | ??"??????##?????# ##???#??????????????????????? | | ????????????????# #????????????????#??????????? | | ????????????#???# ##???????????????????????????? | | ???????#????????# ##????#??????? ?###??????????? | | ??????????#?????# ###??????????? ## ##?#???????? | | ??????????????#?# #??????????? ##?????????? | | ???????????##?#### #???????????? #?????????? | | ????? ???### # #???????####?# #?#?####??? | | ??????????# #?#?#??## ### ##??## ### | | ???? #??????# # ##?# | | ???? ## # #??##### #?# | | ????? ???#### ##### # ### | | ?????? #????#### ##### #?##### | | ???????????## = ## ##????## | | ????? ????## #### # ## ###### ####### | | ???## ???## ##??## #####?#### ## | | ## # ## #???"# #### ### ## | | # #????# ### | | # #???## #g# | | # # # ## ##?## =%@ ## | | ??????##??## ### ##g ## ###### | | ???????????## ## ##### ######?#??## | | ????????????## #### #### ##??#?????### | | ?????????????###### #######???##???## | | ????????????????# #??#????#?????# | | ??????????#?????# #????#??????#?# | | ????????????????## ######???????????#?# | | ?????????????????########?????#????????????####### | | ????????????????????????????????#?#?????????#????? | | ???????????????????????????????????????##????????? | | ??????????????????????????????????????????#????#?? | | ?????????????????????????????????????????????#???? | | ??????????????????????????????????????????#??????? | | ?????????????????????????????????????????????????? | | ?????????????????????????????????????????#???????? | | ?????????????????????????????????????????????????? | | ?????????????????????????????????????????????????? | | ?????????????????????????????????????????????????? | | ?????????????????????????????????????????????????? | | ?????????????????????????????????????????????????? | | ?????????????????????????????????????????????????? | | ?????????????????????????????????????????????????? | | | | | +----------------------------------------------------+ Best States ------------- Heat Dissipation 25 Energy Generation 14 Energy Capacity 250 Matter Stores 273 Matter Capacity 300 Sight Range 16 Terrain Scan Range 16 Terrain Scan Density 10 Evasion (%) 55 Item Schematics ----------------- None Robot Schematics ------------------ None Fabricated ------------ Nothing Repaired ---------- Nothing Studied --------- None Alien Tech Used ----------------- None Achievements -------------- None Challenges ------------ None Game ------ Seed PulsarTrapShovel Manual? 0 Play Time 00:16:25 Cumulative 45.5 hours Start 2026.03.04 @ 18:55:56 End 2026.03.04 @ 19:08:32 Sessions 1 Manual Loads 0 Difficulty Rogue Special Mode None Game No. 66 Rogue 66 Adventurer 0 Explorer 0 Win Type - Total 0 Types 0/0/0/0/0/0/0/0/0/0 Lore% 41 Gallery% 31 Achievement% 22 Wizard Run 0 Options --------- Layout 1 ASCII 0 Keyboard 0 Movement Arrows Keybinds 0 Fullscreen 1 Font 16/SmallcapsGlow Map View 55x38 Zoom Use 0% Tactical HUD 1 Map Filters NONE Filters NONE Steam 1 RUN: 8054d20f-14c5-4194-ab9b-a4dd4f8f862f